bitfinex-derivatives/quotes_ETHF0:USTF0_20250902
["timestamp","ask_amount","ask_price","bid_price","bid_amount"]
[1756850986652,0.6026,4315.3,4315.2,0.2975]
[1756850986852,1.0576,4315.3,4315.2,0.964]
[1756850987053,1.0576,4315.3,4315.2,2.92235437]
[1756850987652,0.8005,4315.6,4315.3,0.4245]
[1756850987857,0.8005,4315.6,4315.5,3.15655437]
[1756850992651,0.8005,4315.6,4315.5,1.1982]
[1756850993152,0.8005,4315.6,4315.5,3.15655437]
[1756850993755,0.8005,4315.6,4315.5,12.11641437]
[1756850993962,4.9953,4317.0,4316.9,1.0123]
[1756850994164,5.2811,4317.0,4316.9,1.2533]
[1756850994359,4.2654,4317.0,4316.9,1.2533]
[1756850995449,3.5246,4317.0,4316.9,3.21165437]
[1756850995654,3.9796,4317.5,4317.4,0.722]
[1756850995860,4.2654,4317.5,4317.4,0.242]
[1756850996360,0.455,4317.4,4316.6,0.4245]
[1756850996554,1.0576,4317.2,4317.1,2.38285437]
[1756850996749,1.0576,4317.2,4317.1,0.6655]
[1756850997361,1.0576,4317.2,4317.1,0.963]
[1756850997757,1.0576,4317.2,4316.5,0.1859]
[1756850997758,0.455,4317.1,4316.1,40.8]
[1756850998062,1.0576,4316.3,4316.2,1.2533]
[1756850998856,0.6026,4316.3,4316.2,1.2533]
[1756850999557,3.2078,4316.5,4316.2,2.78715437]
[1756850999761,3.5246,4316.5,4316.4,1.0123]
[1756850999964,0.3168,4316.5,4316.4,2.97065437]
[1756851000262,3.2078,4317.0,4316.4,2.54615437]
[1756851000462,3.5246,4317.0,4316.9,1.0123]
[1756851000656,3.2078,4317.5,4316.9,3.21165437]
[1756851000959,3.2078,4317.5,4316.9,1.2533]
[1756851000960,0.3168,4317.0,4316.9,1.2533]
[1756851001657,3.2078,4317.5,4316.9,2.78715437]
[1756851001850,3.2078,4317.5,4316.9,0.241]
[1756851002054,0.3168,4317.1,4317.0,2.97065437]
[1756851002859,0.6026,4317.1,4317.0,2.97065437]
[1756851005062,0.6026,4317.1,4317.0,3.21165437]
[1756851005459,0.3168,4317.1,4317.0,3.21165437]
[1756851006657,1.0576,4317.1,4317.0,0.241]
[1756851007366,0.455,4317.0,4316.1,0.4245]
[1756851007666,3.2078,4316.9,4316.8,0.5878]
[1756851007866,3.2078,4316.9,4316.8,1.2533]
[1756851010364,1.2538,4318.1,4317.5,0.1859]
[1756851010365,1.0128,4318.1,4317.5,0.1859]
[1756851010556,4.2654,4318.9,4318.8,0.722]
[1756851010752,4.2654,4318.9,4318.8,0.6655]
[1756851010953,4.2654,4318.9,4318.8,0.231]
[1756851011368,4.2654,4318.9,4318.2,0.4245]
[1756851011568,4.2654,4318.9,4318.3,2.19935437]
[1756851012166,1.0576,4318.9,4318.3,2.19935437]
[1756851012467,4.2654,4318.9,4318.3,2.19935437]
[1756851012871,4.2654,4318.9,4318.5,0.4684]
[1756851012872,0.4667,4318.8,4318.5,0.4684]
[1756851013062,0.5945,4318.6,4318.5,0.7554]
[1756851013264,0.5945,4318.2,4318.1,40.8]
[1756851013464,1.0612,4318.2,4318.1,41.041]
[1756851013659,1.0612,4318.2,4318.1,40.8]
[1756851013864,1.0612,4318.2,4318.1,41.041]
[1756851014561,1.0612,4318.2,4318.1,0.241]
[1756851014762,1.0612,4318.2,4317.0,3.3937]
[1756851014957,1.0612,4317.1,4316.8,71.385]
[1756851015165,0.4667,4316.7,4316.6,0.4684]
[1756851015368,1.0612,4316.7,4316.6,0.7094]
[1756851015768,0.5945,4316.7,4316.2,40.8]
[1756851016071,1.0612,4316.4,4316.3,2.95475437]
[1756851016369,0.5945,4316.4,4316.3,2.95475437]
[1756851016568,0.5945,4316.4,4316.3,0.9964]
[1756851016768,0.5945,4316.4,4316.3,1.2994]
[1756851017268,1.0612,4316.4,4316.3,1.2994]
[1756851017672,1.0612,4316.4,4316.3,1.0584]
[1756851018174,1.0612,4316.4,4316.3,1.2994]
[1756851019971,1.0612,4316.4,4316.3,0.241]
[1756851020369,1.0612,4316.4,4316.3,0.7094]
[1756851021571,5.0612,4316.4,4315.8,0.4684]
[1756851021773,5.0612,4316.4,4315.9,0.241]
[1756851021774,0.5945,4316.0,4315.9,0.241]
[1756851021974,1.0612,4316.0,4315.9,0.241]
[1756851023166,0.4667,4315.9,4315.0,0.4684]
[1756851023371,0.4667,4315.9,4315.1,2.48635437]
[1756851023372,0.4667,4315.8,4315.1,2.48635437]
[1756851023571,0.3039,4315.3,4315.2,1.0584]
[1756851025776,1.0612,4315.3,4314.6,0.4684]
[1756851025980,1.0612,4315.3,4314.7,0.241]
[1756851027488,1.0612,4314.8,4314.7,0.9964]
[1756851028690,3.2078,4314.9,4314.7,1.2994]
[1756851028898,1.0612,4315.7,4315.6,0.287]
[1756851029084,1.0612,4315.7,4314.6,0.4684]
[1756851029396,1.0612,4315.1,4315.0,2.71375437]
[1756851029687,1.0612,4315.1,4315.0,3.25775437]
[1756851029688,0.5945,4315.1,4315.0,3.25775437]
[1756851029992,3.8023,4315.7,4315.6,0.287]
[1756851030194,3.8023,4315.7,4315.6,1.0584]
[1756851030392,4.269,4315.7,4315.6,0.7554]
[1756851030592,3.8023,4315.7,4315.6,1.0584]
[1756851031288,3.2078,4315.7,4315.6,1.0584]
[1756851031592,0.4667,4316.1,4315.7,0.4684]
[1756851031793,0.7706,4316.1,4316.0,1.0584]
[1756851031990,0.3039,4316.1,4316.0,1.0584]
[1756851032386,0.3039,4316.1,4316.0,1.2994]
[1756851032693,3.8023,4316.2,4316.1,0.7554]
[1756851032993,4.269,4316.2,4316.1,0.4684]
[1756851033189,4.269,4316.2,4316.1,0.7554]
[1756851033691,4.269,4316.2,4316.1,0.9964]
[1756851034086,3.5117,4316.2,4316.1,1.2994]
[1756851037398,3.8023,4316.2,4316.1,1.0584]
[1756851037700,4.269,4316.2,4316.1,1.0584]
[1756851039397,0.241,4317.0,4316.1,1.0584]
[1756851039398,0.4667,4316.6,4316.1,1.0584]
[1756851039595,4.269,4316.7,4316.6,1.0584]
[1756851039790,3.2078,4316.7,4316.6,3.25675437]
[1756851040090,3.2078,4316.7,4316.6,46.0984]
[1756851040487,3.2078,4317.5,4316.7,0.4684]
[1756851040689,1.0612,4317.4,4317.3,2.71375437]
[1756851040892,0.5945,4317.4,4317.3,3.25675437]
[1756851041194,3.7917,4318.0,4317.9,0.295]
[1756851041397,4.2285,4318.0,4317.9,0.7474]
[1756851042494,3.7917,4318.0,4317.9,1.0425]
[1756851042700,3.7917,4318.0,4317.9,3.00085437]
[1756851043392,3.7917,4318.0,4317.9,3.24085437]
[1756851044699,3.2078,4318.0,4317.9,3.24085437]
[1756851045400,3.2078,4318.7,4317.9,3.24085437]
[1756851045598,3.5102,4318.7,4318.6,0.295]
[1756851045802,4.2285,4318.7,4318.6,0.295]
[1756851046300,8.2285,4318.7,4318.0,0.215]
[1756851046496,4.4685,4318.7,4318.0,0.215]
[1756851046798,4.4685,4318.7,4317.8,0.24]
[1756851047892,4.4685,4318.7,4317.6,0.4524]
[1756851048197,0.5839,4317.8,4317.7,3.24085437]
[1756851048500,1.0207,4317.8,4317.7,3.24085437]
[1756851048903,1.0207,4317.8,4317.7,3.00085437]
[1756851049096,1.0207,4317.8,4317.7,3.24085437]
[1756851049797,0.4368,4318.6,4317.7,2.78845437]
[1756851050002,0.5839,4318.3,4318.2,3.00085437]
[1756851050294,1.0207,4318.3,4318.2,3.24085437]
[1756851050496,1.0207,4318.3,4318.2,1.2825]
[1756851052694,0.4368,4318.2,4317.3,0.4524]
[1756851053003,0.5839,4316.7,4316.6,0.5901]
[1756851053390,1.0207,4316.7,4316.6,1.0425]
[1756851053905,1.0207,4316.7,4316.6,0.9874]
[1756851056595,0.5839,4316.7,4316.6,1.2825]
[1756851058610,1.0207,4316.7,4316.6,1.2825]
[1756851059303,1.0207,4316.7,4316.6,0.7474]
[1756851059603,1.0207,4316.2,4315.6,0.4524]
[1756851059808,0.5839,4316.0,4315.9,2.70575437]
[1756851059999,1.0207,4316.0,4315.9,2.70575437]
[1756851060201,1.0207,4316.0,4315.9,0.7474]
[1756851060400,0.4368,4315.9,4315.4,0.4524]
[1756851060601,0.5839,4315.6,4315.5,0.295]
[1756851060906,1.0207,4315.6,4315.5,1.2825]
[1756851062109,0.5839,4315.6,4315.5,1.2825]
[1756851062306,3.5102,4316.2,4316.1,0.5901]
[1756851062511,3.5102,4316.7,4316.6,0.295]
[1756851062809,3.5102,4316.7,4316.6,0.7474]
[1756851062810,4.2285,4316.7,4316.6,0.7474]
[1756851063197,3.7917,4316.7,4316.6,1.0425]
[1756851064904,3.2078,4317.3,4316.6,0.8301]
[1756851065107,3.2078,4317.3,4317.2,1.0425]
[1756851065108,3.5102,4317.3,4317.2,1.0425]
[1756851065308,3.7917,4317.3,4317.2,3.00085437]
[1756851065710,3.2078,4317.3,4317.2,3.00085437]
[1756851066008,3.2078,4317.3,4317.2,7.00085437]
[1756851066215,0.1417,4319.5,4317.9,1.0425]
[1756851066216,3.2078,4318.0,4317.9,1.0425]
[1756851066508,3.2078,4318.0,4317.9,1.2825]
[1756851066718,3.2078,4318.0,4317.9,3.24085437]
[1756851066913,3.2078,4318.5,4318.0,0.6292]
[1756851067214,3.2078,4318.5,4318.4,1.0425]
[1756851067415,3.2078,4318.5,4318.4,3.24085437]
[1756851068708,3.2078,4319.1,4318.5,0.1768]
[1756851069016,3.7917,4319.1,4319.0,0.7474]
[1756851069718,0.5839,4318.9,4318.8,0.24]
[1756851069912,1.0207,4318.9,4318.8,2.19835437]
[1756851070217,1.0207,4318.9,4318.8,0.24]
[1756851070710,3.2078,4319.1,4318.8,0.8301]
[1756851070917,3.2078,4319.1,4318.9,0.4524]
[1756851071210,0.2947,4319.0,4318.9,0.7346]
[1756851071509,0.5919,4319.0,4318.9,0.7346]
[1756851071717,1.0207,4319.0,4318.9,0.7346]
[1756851072608,1.0207,4319.0,4318.9,0.9746]
[1756851073014,1.0207,4319.0,4318.9,0.24]
[1756851073315,1.0207,4319.0,4318.2,0.24]
[1756851073517,1.0207,4319.0,4318.4,2.41195437]
[1756851073809,3.5025,4318.6,4318.5,2.98905437]
[1756851074014,3.5025,4318.6,4318.5,1.0307]
[1756851074211,3.5025,4318.6,4318.5,2.98905437]
[1756851076116,3.5025,4318.6,4318.5,3.22905437]
[1756851076416,3.5025,4318.6,4318.5,2.98905437]
[1756851076612,3.5025,4318.6,4318.5,3.22905437]
[1756851079221,3.2078,4318.6,4318.5,3.16965437]
[1756851079421,3.2078,4318.6,4318.5,3.40965437]
[1756851080221,3.5025,4318.6,4318.5,2.98905437]
[1756851080622,3.7997,4318.6,4318.5,3.22905437]
[1756851081223,3.5025,4318.6,4318.5,3.22905437]
[1756851081920,3.5025,4318.6,4318.5,2.98905437]
[1756851082119,3.5025,4318.6,4318.5,3.22905437]
[1756851083319,0.2947,4318.6,4318.5,3.22905437]
[1756851085920,4.2285,4318.6,4317.7,0.4536]
[1756851086123,4.2285,4318.6,4318.5,0.281]
[1756851086423,4.2285,4318.6,4318.5,0.7346]
[1756851088424,4.2285,4318.6,4318.5,0.9746]
[1756851090921,4.2285,4318.6,4318.5,3.22905437]
[1756851090922,3.2078,4318.6,4318.5,3.22905437]
[1756851091124,3.6366,4319.1,4318.5,2.95605437]
[1756851091326,0.2947,4318.8,4318.7,2.98905437]
[1756851096523,1.24058035,4320.1,4318.7,2.98905437]
[1756851096524,1.24058035,4320.2,4319.0,1.2113]
[1756851096734,1.0207,4320.1,4320.0,0.5771]
[1756851096927,0.7235,4320.1,4320.0,0.8171]
[1756851097233,1.0207,4320.1,4320.0,2.77545437]
[1756851098231,3.3908,4320.5,4319.8,0.24]
[1756851098232,1.0207,4319.9,4319.8,0.24]
[1756851098433,4.2285,4319.9,4319.8,0.24]
[1756851099228,1.0207,4319.9,4319.8,0.8171]
[1756851099419,0.7235,4319.9,4319.8,1.1538]
[1756851101924,1.0162,4319.9,4319.8,0.8171]
[1756851106333,1.0162,4319.9,4319.8,0.281]
[1756851106536,1.0162,4319.9,4319.8,0.521]
[1756851107534,1.0162,4319.9,4319.8,0.281]
[1756851107737,0.5773,4319.3,4319.2,40.8]
[1756851107937,1.0233,4319.3,4319.2,41.04]
[1756851108128,1.0233,4319.3,4319.2,2.48245437]
[1756851108329,1.0233,4319.3,4319.2,2.76515437]
[1756851109041,0.446,4319.3,4319.2,3.09405437]
[1756851109633,0.7306,4319.3,4319.2,3.09405437]
[1756851111035,0.446,4319.8,4319.7,0.5668]
[1756851111236,3.2078,4319.9,4319.7,0.8068]
[1756851111540,3.6538,4319.9,4319.8,2.85405437]
[1756851111745,0.183,4320.5,4319.8,2.85405437]
[1756851111746,3.2078,4320.5,4319.8,2.85405437]
[1756851112041,0.446,4320.4,4320.3,0.8957]
[1756851112235,3.2078,4320.5,4320.4,0.8957]
[1756851112433,3.2078,4320.5,4320.4,2.85405437]
[1756851112831,3.2078,4321.1,4320.4,5.31228]
[1756851113035,3.2078,4321.1,4320.5,0.64799]
[1756851113237,3.2078,4321.1,4321.0,1.95835437]
[1756851113442,3.2078,4321.1,4321.0,2.19835437]
[1756851114040,3.2078,4321.7,4321.0,6.42978436]
[1756851114237,0.1726,4321.5,4321.1,0.2314]
[1756851114437,1.0233,4321.3,4321.2,41.04]
[1756851114635,0.1726,4321.5,4320.8,3.43922]
[1756851114836,0.6186,4321.5,4321.4,1.95835437]
[1756851115144,0.446,4321.5,4321.4,1.95835437]
[1756851115439,0.7306,4321.5,4321.4,1.95835437]
[1756851115834,3.2078,4321.7,4321.4,1.95835437]
[1756851116040,3.2078,4321.7,4321.6,1.95835437]
[1756851116235,3.9384,4321.7,4321.6,1.95835437]
[1756851116434,3.9384,4321.7,4321.5,0.24]
[1756851116635,3.4924,4321.7,4321.6,1.95835437]
[1756851117036,0.1726,4322.0,4321.5,0.24]
[1756851117232,3.2078,4322.4,4321.9,1.95835437]
[1756851117436,1.0233,4322.1,4322.0,0.24]
[1756851117835,3.2078,4322.4,4322.0,2.19835437]
[1756851118034,0.446,4322.3,4322.0,0.24]
[1756851118233,3.2078,4322.4,4322.0,0.24]
[1756851118234,1.0233,4322.1,4322.0,0.24]
[1756851118640,3.2078,4322.4,4322.0,0.24]
[1756851118837,0.7306,4322.3,4322.2,1.95835437]
[1756851119250,3.2078,4322.4,4322.0,0.24]
[1756851119431,0.446,4322.3,4322.2,1.95835437]
[1756851119637,0.7306,4322.3,4322.2,1.95835437]
[1756851119940,0.2846,4322.1,4321.3,3.2078]
[1756851120143,0.9032,4322.0,4321.4,0.47138]
[1756851120533,0.9032,4322.0,4321.4,0.24]
[1756851120738,1.1959,4322.0,4321.9,1.95835437]
[1756851121140,0.446,4321.4,4320.9,40.8]
[1756851121447,0.446,4321.9,4321.3,3.2078]
[1756851121747,3.2078,4322.4,4321.4,0.24]
[1756851121947,1.0233,4322.2,4322.1,1.95835437]
[1756851122248,1.0233,4322.2,4322.1,2.19835437]
[1756851122440,1.0233,4322.2,4322.1,0.24]
[1756851124941,0.1726,4321.5,4321.3,3.2078]
[1756851125144,0.446,4321.4,4321.3,3.2078]
[1756851125345,0.446,4321.4,4321.3,3.4478]
[1756851125648,0.446,4321.9,4321.3,3.4478]
[1756851125835,0.7306,4321.9,4321.3,3.4478]
[1756851126040,0.7306,4321.9,4321.8,1.95835437]
[1756851126239,0.446,4321.9,4321.8,2.19835437]
[1756851126439,0.446,4321.9,4321.8,0.24]
[1756851126847,0.7306,4321.9,4321.8,0.24]
[1756851127547,0.7306,4321.9,4321.8,41.04]
[1756851128348,0.446,4321.9,4321.8,41.04]
[1756851128645,0.446,4322.4,4321.8,41.45645]
[1756851128848,0.4572,4322.5,4321.9,0.41644]
[1756851129048,0.9032,4322.5,4322.4,1.95835437]
[1756851129249,0.9032,4322.5,4322.4,2.19835437]
[1756851129648,0.446,4322.5,4322.4,2.19835437]
[1756851131149,0.7306,4322.5,4322.4,2.19835437]
[1756851131352,0.446,4322.5,4322.4,2.19835437]
[1756851131655,0.7281,4322.5,4322.4,2.19835437]
[1756851132251,0.446,4322.5,4322.4,2.19835437]
[1756851133254,0.7281,4322.5,4322.4,2.19835437]
[1756851133454,0.7281,4322.5,4322.4,5.40615437]
[1756851134259,0.446,4322.5,4322.4,5.40615437]
[1756851135250,0.1726,4323.0,4322.4,5.40615437]
[1756851135455,0.4288,4322.9,4322.8,1.95835437]
[1756851135650,0.4288,4323.4,4323.3,1.95835437]
[1756851135853,0.4288,4323.4,4323.3,2.19835437]
[1756851136048,0.4288,4323.4,4323.3,41.04]
[1756851136249,3.2078,4323.9,4323.3,41.04]
[1756851136448,0.4288,4323.7,4323.3,41.45631]
[1756851136850,0.4288,4323.7,4323.4,0.4163]
[1756851137058,0.4288,4323.7,4323.6,1.95835437]
[1756851137350,0.9917,4323.7,4323.6,1.95835437]
[1756851137556,0.9917,4323.4,4323.3,40.8]
[1756851137858,0.9917,4323.4,4323.3,41.04]
[1756851138353,0.5629,4323.1,4323.0,3.2078]
[1756851138552,0.9917,4323.1,4323.0,3.2078]
[1756851138851,0.9917,4323.1,4322.6,0.10746831]
[1756851139043,0.8762,4323.0,4322.9,1.95835437]
[1756851139356,1.157,4323.0,4322.9,1.95835437]
[1756851139556,1.157,4323.0,4322.7,0.24]
[1756851139859,1.157,4323.0,4322.9,1.95835437]
[1756851140050,0.1653,4323.0,4322.7,0.24]
[1756851140251,0.7109,4322.8,4322.7,0.24]
[1756851140451,0.9917,4322.8,4322.7,0.24]
[1756851140758,0.9917,4322.8,4322.7,2.19835437]
[1756851141450,0.4288,4322.4,4322.3,30.545]
[1756851141651,0.4288,4322.4,4322.3,30.89552635]
[1756851141854,0.4288,4322.9,4322.3,30.89552635]
[1756851142058,0.4288,4322.9,4322.3,31.31192635]
[1756851142255,0.7109,4322.9,4322.8,1.95835437]
[1756851142559,0.4288,4322.8,4322.7,1.95835437]
[1756851142753,0.1653,4323.0,4322.3,30.65552635]
[1756851142754,0.7109,4322.4,4322.3,30.65552635]
[1756851142950,0.7109,4322.4,4322.3,30.89552635]
[1756851143256,0.4288,4322.4,4322.3,30.89552635]
[1756851144257,0.4288,4323.3,4322.3,35.12688635]
[1756851144446,0.4474,4323.5,4323.0,0.41633]
[1756851144650,0.4288,4323.4,4323.2,3.2078]
[1756851144846,0.4288,4323.8,4323.7,1.95835437]
[1756851145146,0.9917,4323.8,4323.7,0.24]
[1756851145360,0.9917,4323.8,4323.7,2.19835437]
[1756851146852,0.4288,4324.6,4323.7,6.19835437]
[1756851147153,3.3731,4325.0,4322.5,2.31140404]
[1756851147154,0.5629,4324.7,4324.6,1.98605437]
[1756851147359,0.5629,4324.3,4324.2,3.2355]
[1756851147554,0.5629,4324.3,4324.2,3.4478]
[1756851147755,0.5629,4324.3,4324.2,0.24]
[1756851147958,0.5629,4324.3,4324.2,41.04]
[1756851149158,0.9917,4324.3,4324.2,41.04]
[1756851149359,0.9917,4324.3,4324.2,42.99835437]
[1756851149760,0.7109,4324.3,4324.2,42.99835437]
[1756851150959,0.7282,4325.0,4324.2,46.20615437]
[1756851151164,0.7282,4325.0,4324.5,1.95835437]
[1756851151365,0.5629,4324.7,4324.6,0.239]
[1756851151757,0.9917,4324.7,4324.6,0.239]
[1756851152164,0.9917,4324.7,4324.6,0.2667]
[1756851152558,0.7109,4325.4,4325.3,0.0277]
[1756851152757,0.7109,4325.4,4325.3,0.2954]
[1756851153061,0.9917,4325.4,4325.3,0.2954]
[1756851153265,0.9917,4325.4,4325.3,0.0554]
[1756851153465,0.9917,4325.4,4325.3,0.2954]
[1756851153869,0.9917,4325.4,4325.3,0.2677]
[1756851155970,0.9917,4325.4,4325.3,0.0277]
[1756851156177,0.9917,4325.4,4325.3,0.2677]
[1756851156469,0.9917,4324.4,4324.3,3.2078]
[1756851156775,0.9917,4324.4,4324.3,3.4478]
[1756851158363,0.4288,4324.4,4324.3,3.5032]
[1756851158562,0.4288,4324.9,4324.3,3.5205]
[1756851158762,0.7109,4324.9,4324.8,0.0277]
[1756851158972,0.7109,4324.9,4324.8,0.2677]
[1756851159971,0.5629,4324.4,4324.3,3.2078]
[1756851160270,0.9917,4324.4,4324.3,3.5022]
[1756851160471,0.7109,4324.4,4324.3,3.5022]
[1756851160673,0.4288,4324.4,4324.3,3.5022]
[1756851161471,0.7109,4324.4,4324.3,3.5022]
[1756851161970,0.9841,4324.4,4324.3,3.4468]
[1756851162366,0.9841,4324.4,4324.3,3.4692]
[1756851162761,0.9841,4324.4,4324.3,3.4468]
[1756851165071,0.9841,4324.4,4324.3,0.239]
[1756851166175,0.4386,4324.3,4324.2,40.8]
[1756851166364,1.1522,4324.0,4323.9,30.54]
[1756851166564,1.1522,4324.0,4323.9,30.779]
[1756851168660,1.1522,4324.0,4323.9,30.54]
[1756851168860,1.1522,4324.0,4323.9,30.779]
[1756851169772,1.1522,4324.0,4323.9,30.54]
[1756851169972,1.1522,4324.0,4323.9,30.779]
[1756851172876,0.1784,4324.0,4323.9,30.779]
[1756851174074,0.1784,4324.0,4323.9,31.2075]
[1756851175379,0.1784,4324.0,4323.9,30.779]
[1756851176175,0.1784,4324.0,4323.9,31.2075]
[1756851176378,0.1784,4324.0,4323.9,30.9685]
[1756851176577,0.1784,4324.0,4323.9,31.2075]
[1756851177074,0.1784,4324.0,4323.9,30.54]
[1756851177272,3.2078,4324.4,4323.4,0.2937]
[1756851177467,0.9825,4323.6,4323.5,0.5327]
[1756851177662,0.9825,4323.6,4323.5,1.2429]
[1756851181776,4.1903,4324.2,4324.1,1.0039]
[1756851181970,0.2707,4324.2,4324.1,1.2429]
[1756851182777,0.5439,4324.2,4324.1,1.2429]
[1756851182982,4.1903,4324.2,4324.1,1.2429]
[1756851183283,0.5439,4323.2,4323.1,0.2937]
[1756851183487,0.2732,4322.8,4322.7,0.8144]
[1756851183675,0.9825,4322.8,4322.7,1.2429]
[1756851183978,3.4785,4323.5,4323.4,0.5754]
[1756851184287,3.4785,4323.5,4323.4,1.2429]
[1756851184779,0.2707,4323.5,4323.4,1.2429]
[1756851185684,3.9171,4324.0,4323.9,0.5754]
[1756851185990,3.9171,4324.0,4323.9,1.0039]
[1756851185991,3.4785,4324.0,4323.9,1.0039]
[1756851187585,4.1903,4324.0,4323.9,1.0039]
[1756851187781,4.1903,4324.0,4323.8,0.239]
[1756851188481,3.7517,4324.0,4323.8,0.239]
[1756851188784,0.9825,4323.9,4323.8,0.239]
[1756851191883,0.5439,4323.9,4323.5,0.239]
[1756851192088,0.557,4323.7,4323.6,2.66885437]
[1756851192391,0.958,4323.7,4323.6,2.66885437]
[1756851192589,0.958,4323.7,4323.6,0.7105]
[1756851193084,0.958,4323.6,4323.5,0.2808]
[1756851193390,3.2078,4324.0,4323.5,0.5622]
[1756851193391,3.6088,4324.0,4323.5,0.5622]
[1756851193587,4.1658,4324.0,4323.9,0.9919]
[1756851194296,3.7648,4324.0,4323.9,0.9919]
[1756851195898,3.7648,4324.0,4323.9,2.95025437]
[1756851196087,3.4895,4324.5,4324.4,0.9919]
[1756851196292,3.2078,4324.5,4324.4,2.95025437]
[1756851196486,3.4895,4324.5,4324.4,3.18925437]
[1756851198791,3.4895,4325.0,4324.9,0.5622]
[1756851198990,4.50076086,4325.0,4324.9,1.2309]
[1756851199184,3.4895,4325.0,4324.9,3.18925437]
[1756851199790,0.2817,4325.0,4324.9,3.18925437]
[1756851200787,0.401,4325.3,4325.0,0.4297]
[1756851200995,4.1658,4325.5,4325.4,0.9919]
[1756851201193,4.1658,4325.5,4325.4,1.2309]
[1756851202900,4.1658,4325.5,4325.3,0.239]
[1756851203103,0.958,4325.4,4325.3,2.47815437]
[1756851203298,0.958,4325.4,4325.3,0.5198]
[1756851203996,0.958,4325.4,4325.3,0.9495]
[1756851205298,0.958,4325.4,4325.3,0.5198]
[1756851206791,0.958,4325.4,4325.3,0.9495]
[1756851206996,0.958,4325.4,4325.3,1.2309]
[1756851207901,0.557,4325.4,4325.3,1.2309]
[1756851208203,3.2078,4325.5,4325.4,0.9919]
[1756851208402,3.4895,4325.5,4325.4,0.9919]
[1756851209009,4.1658,4325.5,4325.4,0.9919]
[1756851209504,3.4895,4325.5,4325.4,2.95025437]
[1756851209705,3.2078,4325.5,4325.4,2.95025437]
[1756851210505,3.2078,4326.0,4325.6,0.4297]
[1756851210702,3.2078,4326.0,4325.9,0.5622]
[1756851211005,3.2078,4326.0,4325.9,3.18925437]
[1756851211195,3.7648,4326.0,4325.9,2.95025437]
[1756851211394,4.1658,4326.0,4325.9,2.19735437]
[1756851211700,4.1658,4326.0,4325.9,2.47815437]
[1756851212006,4.1658,4326.0,4325.9,2.90785437]
[1756851212703,4.1658,4326.0,4325.9,2.66885437]
[1756851212898,0.557,4325.5,4325.4,3.2078]
[1756851213105,0.958,4325.5,4325.4,4.1573]
[1756851213307,0.958,4325.5,4325.4,6.39705437]
[1756851215504,0.958,4325.5,4325.4,6.15805437]
[1756851215806,0.958,4325.5,4325.4,6.39705437]
[1756851216401,4.1658,4325.5,4325.4,3.18925437]
[1756851216599,0.958,4325.5,4325.4,2.47815437]
[1756851216796,0.401,4325.9,4325.5,0.4297]
[1756851217004,0.2817,4325.9,4325.8,2.95025437]
[1756851217216,0.2817,4325.9,4325.8,3.18925437]
[1756851217217,0.6827,4325.9,4325.8,3.18925437]
[1756851217502,0.6827,4325.9,4325.8,1.2309]
[1756851217804,0.2817,4325.9,4325.8,1.2309]
[1756851218709,0.958,4325.9,4325.8,1.2309]
[1756851219009,0.958,4325.9,4325.8,0.9919]
[1756851219207,0.958,4325.9,4325.8,1.2309]
[1756851219911,0.557,4325.9,4325.8,1.2309]
[1756851221211,0.2817,4325.9,4325.8,1.2309]
[1756851221408,3.2078,4326.0,4325.8,1.2309]
[1756851221409,3.2078,4326.0,4325.8,0.8012]
[1756851221710,3.2078,4326.0,4325.9,2.91235437]
[1756851221907,3.6319,4326.6,4325.9,2.91235437]
[1756851222107,3.8975,4326.6,4326.5,0.5403]
[1756851222415,4.1831,4326.6,4326.5,0.954]
[1756851223313,3.759,4326.6,4326.5,0.954]
[1756851223612,4.1831,4326.6,4326.5,0.954]
[1756851223811,4.1831,4326.6,4325.8,44.0078]
[1756851223812,4.1831,4326.6,4326.1,0.4137]
[1756851224013,0.9753,4326.5,4326.0,0.4137]
[1756851224207,1.1344,4326.5,4326.1,0.239]
[1756851224909,0.9753,4326.5,4326.1,0.239]
[1756851225911,0.4241,4326.4,4326.3,0.2747]
[1756851226102,0.9753,4326.4,4326.3,2.91235437]
[1756851226413,0.9753,4326.4,4326.3,0.954]
[1756851226812,0.5512,4326.4,4326.3,0.954]
[1756851228711,3.2078,4326.6,4326.4,0.4137]
[1756851228911,3.2078,4326.6,4326.5,0.954]
[1756851228912,3.4734,4326.6,4326.5,0.954]
[1756851229307,3.4734,4326.6,4326.5,1.193]
[1756851229511,0.4241,4327.0,4326.5,2.73765437]
[1756851229705,0.4241,4327.0,4326.9,0.954]
[1756851229706,0.9753,4327.0,4326.9,0.954]
[1756851233113,0.9753,4327.0,4326.6,0.239]
[1756851233322,0.1591,4327.0,4326.7,1.95835437]
[1756851233513,0.9753,4326.8,4326.7,1.95835437]
[1756851233711,0.9753,4326.8,4325.8,3.2078]
[1756851233912,4.1831,4326.5,4326.4,1.95835437]
[1756851234220,4.1831,4326.5,4326.4,0.954]
[1756851234419,4.1831,4326.5,4326.4,2.91235437]
[1756851235517,4.1831,4326.5,4326.4,3.15135437]
[1756851236116,3.759,4326.5,4326.4,3.15135437]
[1756851236620,4.1831,4326.5,4326.4,3.15135437]
[1756851236916,4.1831,4326.5,4326.4,1.95835437]
[1756851237115,4.1831,4326.5,4326.4,0.239]
[1756851238223,4.1831,4326.5,4326.4,0.9183]
[1756851239123,4.1831,4326.5,4326.4,0.239]
[1756851240232,4.1831,4326.5,4326.4,2.87665437]